[Event "*** SCC Grand Prix: Titled Tuesday Blitz"]
[Site "Chess.com"]
[Date "2020.08.11"]
[Round "8"]
[White "Virgo15"]
[Black "kakarot_001"]
[Result "0-1"]
[WhiteElo "2696"]
[BlackElo "2831"]
[TimeControl "180+1"]
[EndTime "11:35:30 PDT"]
[Termination "kakarot_001 won on time"]

1. d4 {[%clk 0:03:00]} 1... Nf6 {[%clk 0:02:59]} 2. c4 {[%clk 0:02:57.1]} 2...
e6 {[%clk 0:02:54.4]} 3. Nc3 {[%clk 0:02:57.4]} 3... Bb4 {[%clk 0:02:53.4]} 4.
Qc2 {[%clk 0:02:57.6]} 4... O-O {[%clk 0:02:52.4]} 5. e4 {[%clk 0:02:57.9]} 5...
d6 {[%clk 0:02:46.2]} 6. Bd3 {[%clk 0:02:57.4]} 6... e5 {[%clk 0:02:41.9]} 7. a3
{[%clk 0:02:56.7]} 7... Bxc3+ {[%clk 0:02:40.7]} 8. bxc3 {[%clk 0:02:57.4]} 8...
Re8 {[%clk 0:02:37.2]} 9. Ne2 {[%clk 0:02:55]} 9... c5 {[%clk 0:02:36.4]} 10.
O-O {[%clk 0:02:47.8]} 10... b6 {[%clk 0:02:36.5]} 11. d5 {[%clk 0:02:36.5]}
11... Nbd7 {[%clk 0:02:29.7]} 12. h3 {[%clk 0:02:33]} 12... Nf8 {[%clk
0:02:29.8]} 13. f4 {[%clk 0:02:29.9]} 13... exf4 {[%clk 0:02:27.8]} 14. Nxf4
{[%clk 0:02:29.9]} 14... N6d7 {[%clk 0:02:23.1]} 15. Be3 {[%clk 0:02:16.2]}
15... Ne5 {[%clk 0:02:20.5]} 16. Rf2 {[%clk 0:02:16.4]} 16... Qh4 {[%clk
0:02:15.2]} 17. Raf1 {[%clk 0:02:14.8]} 17... Ba6 {[%clk 0:02:14.5]} 18. Qa4
{[%clk 0:02:05.3]} 18... Nxd3 {[%clk 0:02:01.9]} 19. Nxd3 {[%clk 0:02:06.2]}
19... Qxe4 {[%clk 0:02:01.6]} 20. Qxa6 {[%clk 0:01:58.8]} 20... Qxe3 {[%clk
0:01:57.1]} 21. Qb7 {[%clk 0:01:37.9]} 21... f6 {[%clk 0:01:39.4]} 22. Nf4
{[%clk 0:01:37.9]} 22... Qe7 {[%clk 0:01:24.8]} 23. Qa6 {[%clk 0:01:33.9]} 23...
Qe3 {[%clk 0:01:20.9]} 24. Qb7 {[%clk 0:01:31.5]} 24... Qe7 {[%clk 0:01:10.7]}
25. Qa6 {[%clk 0:01:24]} 25... Qd7 {[%clk 0:01:10.9]} 26. Nh5 {[%clk 0:01:16.1]}
26... Kh8 {[%clk 0:01:07.5]} 27. Nf4 {[%clk 0:01:07.6]} 27... Re3 {[%clk
0:01:06.3]} 28. Rf3 {[%clk 0:01:07.2]} 28... Rae8 {[%clk 0:01:03.7]} 29. Kh2
{[%clk 0:01:07.2]} 29... R3e4 {[%clk 0:00:58.1]} 30. R1f2 {[%clk 0:01:02.3]}
30... Re1 {[%clk 0:00:55]} 31. Rf1 {[%clk 0:01:02.2]} 31... R1e5 {[%clk
0:00:48.8]} 32. R1f2 {[%clk 0:01:01.7]} 32... R8e7 {[%clk 0:00:42.8]} 33. Rf1
{[%clk 0:00:58.4]} 33... Qe8 {[%clk 0:00:42.9]} 34. R1f2 {[%clk 0:00:55.3]}
34... Re3 {[%clk 0:00:42.7]} 35. Rf1 {[%clk 0:00:54.6]} 35... Rxf3 {[%clk
0:00:39.3]} 36. Rxf3 {[%clk 0:00:55.5]} 36... Qd7 {[%clk 0:00:37.5]} 37. a4
{[%clk 0:00:47.8]} 37... Kg8 {[%clk 0:00:34.4]} 38. a5 {[%clk 0:00:46.2]} 38...
bxa5 {[%clk 0:00:34.7]} 39. Qxa5 {[%clk 0:00:46.6]} 39... Qc7 {[%clk 0:00:34.8]}
40. Qa6 {[%clk 0:00:42.6]} 40... Qb6 {[%clk 0:00:33.3]} 41. Qc8 {[%clk
0:00:41.7]} 41... Qb7 {[%clk 0:00:29.5]} 42. Qd8 {[%clk 0:00:27.9]} 42... Qc7
{[%clk 0:00:26.9]} 43. Qa8 {[%clk 0:00:27.1]} 43... Qd7 {[%clk 0:00:25.5]} 44.
Qb8 {[%clk 0:00:14.4]} 44... Re8 {[%clk 0:00:25.1]} 45. Qb1 {[%clk 0:00:11.4]}
45... a5 {[%clk 0:00:24.7]} 46. Rg3 {[%clk 0:00:11.9]} 46... a4 {[%clk
0:00:19.8]} 47. Qc1 {[%clk 0:00:11.5]} 47... Ra8 {[%clk 0:00:18.2]} 48. Nh5
{[%clk 0:00:11.8]} 48... Ng6 {[%clk 0:00:17.7]} 49. Qa3 {[%clk 0:00:08.5]} 49...
Qf5 {[%clk 0:00:16.9]} 50. Qb2 {[%clk 0:00:03.2]} 50... Qxh5 {[%clk 0:00:15.8]}
51. Qb7 {[%clk 0:00:03.7]} 51... Rf8 {[%clk 0:00:15.6]} 52. Qd7 {[%clk
0:00:03.4]} 52... Qe5 {[%clk 0:00:15.4]} 53. Qxa4 {[%clk 0:00:03.9]} 53... Nf4
{[%clk 0:00:15.4]} 54. Rf3 {[%clk 0:00:01.3]} 54... Ne2+ {[%clk 0:00:14.5]} 55.
Kh1 {[%clk 0:00:01.4]} 55... Ng3+ {[%clk 0:00:14.2]} 0-1

[Event "*** SCC Grand Prix: Titled Tuesday Blitz"]
[Site "Chess.com"]
[Date "2020.08.11"]
[Round "8"]
[White "Murad_Ibrahimli"]
[Black "ehrenfeld"]
[Result "1-0"]
[WhiteElo "2706"]
[BlackElo "2561"]
[TimeControl "180+1"]
[EndTime "11:35:33 PDT"]
[Termination "Murad_Ibrahimli won on time"]

1. Nf3 {[%clk 0:03:00.9]} 1... f5 {[%clk 0:02:54.8]} 2. d3 {[%clk 0:02:58.7]}
2... d6 {[%clk 0:02:54.7]} 3. Nc3 {[%clk 0:02:57.7]} 3... e5 {[%clk 0:02:54.1]}
4. e4 {[%clk 0:02:57.2]} 4... Nc6 {[%clk 0:02:53.7]} 5. Be2 {[%clk 0:02:53.2]}
5... Nf6 {[%clk 0:02:44.6]} 6. O-O {[%clk 0:02:51.9]} 6... Be7 {[%clk
0:02:42.7]} 7. exf5 {[%clk 0:02:48.1]} 7... Bxf5 {[%clk 0:02:41.6]} 8. d4 {[%clk
0:02:47.3]} 8... O-O {[%clk 0:02:40.5]} 9. dxe5 {[%clk 0:02:30.4]} 9... dxe5
{[%clk 0:02:37.6]} 10. Bc4+ {[%clk 0:02:29.3]} 10... Kh8 {[%clk 0:02:36.6]} 11.
Bb3 {[%clk 0:01:54.4]} 11... h6 {[%clk 0:02:29.2]} 12. Be3 {[%clk 0:01:47.6]}
12... Qxd1 {[%clk 0:02:06.4]} 13. Raxd1 {[%clk 0:01:44.7]} 13... Rad8 {[%clk
0:02:06.6]} 14. h3 {[%clk 0:01:41.5]} 14... a6 {[%clk 0:01:59.7]} 15. Ne2 {[%clk
0:01:27.6]} 15... Be4 {[%clk 0:01:41.6]} 16. Nd2 {[%clk 0:01:24.9]} 16... Bg6
{[%clk 0:01:37.9]} 17. Nf3 {[%clk 0:01:13]} 17... Be4 {[%clk 0:01:35.2]} 18. Nd2
{[%clk 0:01:06.7]} 18... Bg6 {[%clk 0:01:34.6]} 19. Ng3 {[%clk 0:01:00.7]} 19...
Nd4 {[%clk 0:01:32.9]} 20. c3 {[%clk 0:00:59]} 20... Nxb3 {[%clk 0:01:18.4]} 21.
Nxb3 {[%clk 0:00:55.9]} 21... b6 {[%clk 0:01:17.5]} 22. Rfe1 {[%clk 0:00:52]}
22... a5 {[%clk 0:01:04.7]} 23. Nd2 {[%clk 0:00:49.9]} 23... Rd3 {[%clk
0:00:53.7]} 24. Nc4 {[%clk 0:00:45.3]} 24... Nd7 {[%clk 0:00:32.7]} 25. Nd2
{[%clk 0:00:34.3]} 25... Nc5 {[%clk 0:00:29.6]} 26. Nf3 {[%clk 0:00:33.9]} 26...
Rxd1 {[%clk 0:00:27.2]} 27. Rxd1 {[%clk 0:00:33.5]} 27... Nd3 {[%clk 0:00:27]}
28. Rd2 {[%clk 0:00:29.3]} 28... Bf6 {[%clk 0:00:26.9]} 29. Nh2 {[%clk
0:00:25.4]} 29... a4 {[%clk 0:00:24.8]} 30. Ng4 {[%clk 0:00:23]} 30... Kh7
{[%clk 0:00:23.9]} 31. a3 {[%clk 0:00:21.8]} 31... h5 {[%clk 0:00:22.5]} 32.
Nxf6+ {[%clk 0:00:20.7]} 32... gxf6 {[%clk 0:00:22]} 33. Ne2 {[%clk 0:00:18.3]}
33... b5 {[%clk 0:00:21.1]} 34. f4 {[%clk 0:00:18.2]} 34... Re8 {[%clk
0:00:20.1]} 35. fxe5 {[%clk 0:00:18.6]} 35... fxe5 {[%clk 0:00:19.9]} 36. Ng3
{[%clk 0:00:17.9]} 36... c5 {[%clk 0:00:18.7]} 37. Nh1 {[%clk 0:00:17.5]} 37...
c4 {[%clk 0:00:18.7]} 38. Nf2 {[%clk 0:00:17.4]} 38... Rd8 {[%clk 0:00:17.9]}
39. Bg5 {[%clk 0:00:15.7]} 39... Rf8 {[%clk 0:00:16.9]} 40. Be3 {[%clk 0:00:15]}
40... Rd8 {[%clk 0:00:16.3]} 41. h4 {[%clk 0:00:15.3]} 41... Re8 {[%clk
0:00:15.4]} 42. Nh3 {[%clk 0:00:15.5]} 42... Kg7 {[%clk 0:00:14.4]} 43. Ng5
{[%clk 0:00:15.7]} 43... Bf5 {[%clk 0:00:11.2]} 44. Nf3 {[%clk 0:00:15.3]} 44...
Kg6 {[%clk 0:00:10.5]} 45. Ng5 {[%clk 0:00:15.6]} 45... Bg4 {[%clk 0:00:10.3]}
46. Kh2 {[%clk 0:00:15.3]} 46... Rd8 {[%clk 0:00:10.1]} 47. Kg3 {[%clk
0:00:14.9]} 47... Re8 {[%clk 0:00:09.6]} 48. Ne4 {[%clk 0:00:14.9]} 48... Bf5
{[%clk 0:00:07.9]} 49. Nd6 {[%clk 0:00:14.7]} 49... Rb8 {[%clk 0:00:07.5]} 50.
Ba7 {[%clk 0:00:14]} 50... Ra8 {[%clk 0:00:06.4]} 51. Be3 {[%clk 0:00:13.4]}
51... Bd7 {[%clk 0:00:05.4]} 52. Ne4 {[%clk 0:00:12.8]} 52... Rf8 {[%clk
0:00:05.1]} 53. Ng5 {[%clk 0:00:13.1]} 53... Bc8 {[%clk 0:00:04.6]} 54. Nf3
{[%clk 0:00:12.8]} 54... e4 {[%clk 0:00:03.7]} 55. Nh2 {[%clk 0:00:11.5]} 55...
Bg4 {[%clk 0:00:02.6]} 56. Nxg4 {[%clk 0:00:11.2]} 56... hxg4 {[%clk 0:00:02.8]}
57. Kxg4 {[%clk 0:00:11.7]} 57... Rf1 {[%clk 0:00:03]} 58. h5+ {[%clk
0:00:12.2]} 58... Kh7 {[%clk 0:00:01.8]} 59. g3 {[%clk 0:00:11.2]} 59... Rb1
{[%clk 0:00:01.5]} 60. Kf5 {[%clk 0:00:09.9]} 60... Rxb2 {[%clk 0:00:01.3]} 61.
Rxb2 {[%clk 0:00:10.1]} 61... Nxb2 {[%clk 0:00:01]} 62. g4 {[%clk 0:00:10.6]}
62... b4 {[%clk 0:00:01]} 63. g5 {[%clk 0:00:08.5]} 1-0

[Event "*** SCC Grand Prix: Titled Tuesday Blitz"]
[Site "Chess.com"]
[Date "2020.08.11"]
[Round "8"]
[White "Kobalia"]
[Black "CaspiIsrael"]
[Result "0-1"]
[WhiteElo "2777"]
[BlackElo "2654"]
[TimeControl "180+1"]
[EndTime "11:35:34 PDT"]
[Termination "CaspiIsrael won on time"]

1. e4 {[%clk 0:03:00.9]} 1... d5 {[%clk 0:02:58.5]} 2. exd5 {[%clk 0:03:00.4]}
2... Qxd5 {[%clk 0:02:59.4]} 3. Nc3 {[%clk 0:03:00.6]} 3... Qd6 {[%clk 0:03:00]}
4. d4 {[%clk 0:02:58.3]} 4... Nf6 {[%clk 0:03:00.2]} 5. Nf3 {[%clk 0:02:57.2]}
5... a6 {[%clk 0:03:00.6]} 6. g3 {[%clk 0:02:49.9]} 6... Bg4 {[%clk 0:02:59.9]}
7. Bg2 {[%clk 0:02:44.5]} 7... Nc6 {[%clk 0:03:00]} 8. d5 {[%clk 0:02:29.7]}
8... Ne5 {[%clk 0:02:52.9]} 9. Bf4 {[%clk 0:02:27.4]} 9... Nxf3+ {[%clk
0:02:35.6]} 10. Bxf3 {[%clk 0:02:27.3]} 10... e5 {[%clk 0:02:34.3]} 11. dxe6
{[%clk 0:02:04.2]} 11... Qxe6+ {[%clk 0:02:30.6]} 12. Be3 {[%clk 0:01:59.7]}
12... Bxf3 {[%clk 0:02:06.1]} 13. Qxf3 {[%clk 0:01:59.1]} 13... O-O-O {[%clk
0:02:06.6]} 14. O-O {[%clk 0:01:55]} 14... h6 {[%clk 0:02:00]} 15. Rfe1 {[%clk
0:01:52.2]} 15... Qh3 {[%clk 0:01:59.4]} 16. Qg2 {[%clk 0:01:32.1]} 16... Qxg2+
{[%clk 0:01:59.1]} 17. Kxg2 {[%clk 0:01:33]} 17... Bb4 {[%clk 0:01:59.3]} 18.
Rad1 {[%clk 0:01:26.9]} 18... Bxc3 {[%clk 0:01:58.9]} 19. bxc3 {[%clk
0:01:26.5]} 19... Nd5 {[%clk 0:01:52]} 20. Bd4 {[%clk 0:01:25.8]} 20... f6
{[%clk 0:01:52.1]} 21. a3 {[%clk 0:00:49.1]} 21... b5 {[%clk 0:01:51.4]} 22. h4
{[%clk 0:00:44.8]} 22... h5 {[%clk 0:01:47.5]} 23. Re6 {[%clk 0:00:44.1]} 23...
Kb7 {[%clk 0:01:16.4]} 24. Rde1 {[%clk 0:00:42.1]} 24... Rd7 {[%clk 0:01:13.9]}
25. Kf3 {[%clk 0:00:38.4]} 25... Rc8 {[%clk 0:01:13.4]} 26. Rb1 {[%clk
0:00:24.2]} 26... c5 {[%clk 0:01:09.6]} 27. Be3 {[%clk 0:00:10.5]} 27... Nxc3
{[%clk 0:01:09.5]} 28. Re1 {[%clk 0:00:10]} 28... Rc6 {[%clk 0:00:58.5]} 29. Re8
{[%clk 0:00:08.7]} 29... Nd5 {[%clk 0:00:51.2]} 30. g4 {[%clk 0:00:07.9]} 30...
hxg4+ {[%clk 0:00:49.4]} 31. Kxg4 {[%clk 0:00:08]} 31... g6 {[%clk 0:00:40.7]}
32. Bc1 {[%clk 0:00:07.1]} 32... f5+ {[%clk 0:00:38.6]} 33. Kg5 {[%clk
0:00:06.7]} 33... Rh7 {[%clk 0:00:37.3]} 34. R1e6 {[%clk 0:00:04.7]} 34... Rh5+
{[%clk 0:00:16.8]} 35. Kxg6 {[%clk 0:00:04.2]} 35... Rxh4 {[%clk 0:00:17.1]} 36.
Rxc6 {[%clk 0:00:03.4]} 36... Kxc6 {[%clk 0:00:16.9]} 37. Re6+ {[%clk
0:00:03.9]} 37... Kb7 {[%clk 0:00:14.1]} 38. Kxf5 {[%clk 0:00:03.4]} 38... Rc4
{[%clk 0:00:14.5]} 39. Re2 {[%clk 0:00:03.3]} 39... Nc3 {[%clk 0:00:13.8]} 40.
Re7+ {[%clk 0:00:01.9]} 40... Kc6 {[%clk 0:00:13.2]} 41. Re6+ {[%clk 0:00:02.2]}
41... Kb7 {[%clk 0:00:13.4]} 42. f4 {[%clk 0:00:02.3]} 42... Na2 {[%clk
0:00:12.4]} 43. Be3 {[%clk 0:00:02.5]} 43... Rxc2 {[%clk 0:00:12.3]} 44. Kg6
{[%clk 0:00:02.8]} 44... c4 {[%clk 0:00:08.9]} 45. f5 {[%clk 0:00:02.6]} 45...
Rg2+ {[%clk 0:00:09.1]} 46. Kh7 {[%clk 0:00:02.2]} 46... Rg3 {[%clk 0:00:06.6]}
47. Bf4 {[%clk 0:00:01.7]} 47... Rf3 {[%clk 0:00:06.6]} 48. Re4 {[%clk
0:00:01.5]} 48... Nc3 {[%clk 0:00:06.5]} 49. Re7+ {[%clk 0:00:01.3]} 49... Kc6
{[%clk 0:00:06.4]} 50. Be5 {[%clk 0:00:01.7]} 50... Nd5 {[%clk 0:00:06.1]} 51.
Re6+ {[%clk 0:00:01.9]} 51... Kd7 {[%clk 0:00:06]} 52. Rd6+ {[%clk 0:00:02.1]}
52... Ke7 {[%clk 0:00:05.7]} 53. Rxd5 {[%clk 0:00:02.1]} 53... Rxf5 {[%clk
0:00:06.3]} 54. Rc5 {[%clk 0:00:02.5]} 54... Ke6 {[%clk 0:00:06.2]} 55. Bd4
{[%clk 0:00:02.8]} 55... Rxc5 {[%clk 0:00:06]} 56. Bxc5 {[%clk 0:00:03.2]} 56...
c3 {[%clk 0:00:05.7]} 57. Bb4 {[%clk 0:00:03.5]} 57... c2 {[%clk 0:00:05.8]} 58.
Bd2 {[%clk 0:00:04.4]} 58... Kd5 {[%clk 0:00:06.3]} 59. Kg6 {[%clk 0:00:04.8]}
59... Kc4 {[%clk 0:00:06.9]} 60. Kf5 {[%clk 0:00:05.2]} 60... Kb3 {[%clk
0:00:07.4]} 61. Ke4 {[%clk 0:00:05.6]} 61... Kxa3 {[%clk 0:00:07.3]} 62. Kd4
{[%clk 0:00:06]} 62... Kb2 {[%clk 0:00:07.4]} 63. Kc5 {[%clk 0:00:06.4]} 63...
c1=Q+ {[%clk 0:00:07.4]} 0-1

[Event "*** SCC Grand Prix: Titled Tuesday Blitz"]
[Site "Chess.com"]
[Date "2020.08.11"]
[Round "8"]
[White "IMHansNiemann"]
[Black "1977Ivan"]
[Result "1-0"]
[WhiteElo "2913"]
[BlackElo "2675"]
[TimeControl "180+1"]
[EndTime "11:35:36 PDT"]
[Termination "IMHansNiemann won by resignation"]

1. d4 {[%clk 0:03:00.9]} 1... Nf6 {[%clk 0:02:59.8]} 2. Nc3 {[%clk 0:02:59.7]}
2... d5 {[%clk 0:02:58.8]} 3. Bf4 {[%clk 0:02:59.5]} 3... g6 {[%clk 0:02:55.5]}
4. e3 {[%clk 0:02:58.2]} 4... Bg7 {[%clk 0:02:54.2]} 5. h4 {[%clk 0:02:58.2]}
5... h5 {[%clk 0:02:39.6]} 6. Nf3 {[%clk 0:02:57.3]} 6... O-O {[%clk 0:02:36.2]}
7. Ne5 {[%clk 0:02:57.5]} 7... c5 {[%clk 0:02:33.2]} 8. dxc5 {[%clk 0:02:57.8]}
8... Nc6 {[%clk 0:02:31.7]} 9. Bb5 {[%clk 0:02:53.8]} 9... Bd7 {[%clk
0:02:19.5]} 10. Bxc6 {[%clk 0:02:45.8]} 10... Bxc6 {[%clk 0:02:17.5]} 11. O-O
{[%clk 0:02:42.5]} 11... Nd7 {[%clk 0:02:10.9]} 12. Nxd7 {[%clk 0:02:19]} 12...
Qxd7 {[%clk 0:02:11.8]} 13. Qd2 {[%clk 0:02:19.3]} 13... e5 {[%clk 0:02:09.8]}
14. Bg3 {[%clk 0:02:17.8]} 14... d4 {[%clk 0:02:06.9]} 15. exd4 {[%clk
0:02:16.5]} 15... exd4 {[%clk 0:02:07.8]} 16. Ne2 {[%clk 0:02:13]} 16... Rfe8
{[%clk 0:02:06.8]} 17. Nf4 {[%clk 0:02:11]} 17... Re4 {[%clk 0:01:59.9]} 18. f3
{[%clk 0:02:06.8]} 18... Re3 {[%clk 0:01:50.2]} 19. Bf2 {[%clk 0:02:04.9]} 19...
Qf5 {[%clk 0:01:47.7]} 20. Bxe3 {[%clk 0:01:57.3]} 20... dxe3 {[%clk 0:01:48.6]}
21. Qxe3 {[%clk 0:01:57.6]} 21... Re8 {[%clk 0:01:45.5]} 22. Qd2 {[%clk
0:01:55.1]} 22... Bxb2 {[%clk 0:01:45.2]} 23. Rae1 {[%clk 0:01:50.4]} 23... Rxe1
{[%clk 0:01:35.9]} 24. Rxe1 {[%clk 0:01:45.5]} 24... Qxc5+ {[%clk 0:01:36.2]}
25. Kh1 {[%clk 0:01:41.8]} 25... Bf6 {[%clk 0:01:31.8]} 26. Nd3 {[%clk
0:01:27.9]} 26... Qd4 {[%clk 0:01:17.7]} 27. Qf4 {[%clk 0:01:25.3]} 27... Qxf4
{[%clk 0:01:12.2]} 28. Nxf4 {[%clk 0:01:22.2]} 28... Bxh4 {[%clk 0:01:13.1]} 29.
Rd1 {[%clk 0:01:22.2]} 29... Kf8 {[%clk 0:01:10.2]} 30. Nd5 {[%clk 0:01:20.4]}
30... Bg3 {[%clk 0:01:04.7]} 31. c4 {[%clk 0:01:19.9]} 31... Bd6 {[%clk
0:00:54.8]} 32. Kg1 {[%clk 0:01:18.8]} 32... Bc5+ {[%clk 0:00:54.5]} 33. Kh2
{[%clk 0:01:19]} 33... f5 {[%clk 0:00:53.4]} 34. Nf4 {[%clk 0:01:17.4]} 34...
Kf7 {[%clk 0:00:52.5]} 35. Nd3 {[%clk 0:01:17.9]} 35... Bd6+ {[%clk 0:00:52.2]}
36. Kg1 {[%clk 0:01:15.8]} 36... Kf6 {[%clk 0:00:52.7]} 37. Kf2 {[%clk
0:01:15.8]} 37... h4 {[%clk 0:00:52.4]} 38. c5 {[%clk 0:01:15.8]} 38... Bg3+
{[%clk 0:00:51.7]} 39. Ke3 {[%clk 0:01:15.9]} 39... g5 {[%clk 0:00:52.1]} 40.
Nb4 {[%clk 0:01:16.3]} 40... Ba4 {[%clk 0:00:49.8]} 41. Rd8 {[%clk 0:01:15.3]}
41... g4 {[%clk 0:00:46.8]} 42. Rf8+ {[%clk 0:01:08.8]} 42... Ke6 {[%clk
0:00:45.9]} 43. fxg4 {[%clk 0:01:02.3]} 43... fxg4 {[%clk 0:00:46.8]} 44. Rg8
{[%clk 0:01:02.8]} 44... Bd1 {[%clk 0:00:45.6]} 45. c6 {[%clk 0:00:55]} 45...
bxc6 {[%clk 0:00:44.2]} 46. Nxc6 {[%clk 0:00:55.9]} 46... Bh2 {[%clk 0:00:44.2]}
47. Nd4+ {[%clk 0:00:50.6]} 47... Kf7 {[%clk 0:00:44]} 48. Rh8 {[%clk
0:00:49.8]} 48... Bg1+ {[%clk 0:00:28.9]} 49. Ke4 {[%clk 0:00:48.2]} 49... h3
{[%clk 0:00:25.7]} 50. gxh3 {[%clk 0:00:40.9]} 50... g3 {[%clk 0:00:25.9]} 51.
Nf3 {[%clk 0:00:25.4]} 51... Bf2 {[%clk 0:00:25.2]} 52. Nh4 {[%clk 0:00:24.3]}
52... Ba4 {[%clk 0:00:19.5]} 53. Rc8 {[%clk 0:00:23.3]} 53... Bd7 {[%clk
0:00:18.5]} 54. Rc7 {[%clk 0:00:23.3]} 54... Ke6 {[%clk 0:00:19]} 55. Kf3 {[%clk
0:00:19.5]} 55... Kd6 {[%clk 0:00:18]} 56. Rxd7+ {[%clk 0:00:18]} 56... Kxd7
{[%clk 0:00:18.9]} 57. Nf5 {[%clk 0:00:18.5]} 57... Be1 {[%clk 0:00:17.3]} 58.
Nxg3 {[%clk 0:00:18.5]} 58... Ke6 {[%clk 0:00:17.8]} 59. h4 {[%clk 0:00:18.2]}
59... Kd5 {[%clk 0:00:17.9]} 60. h5 {[%clk 0:00:17.7]} 60... Bd2 {[%clk
0:00:18]} 61. Ne4 {[%clk 0:00:16.3]} 61... Bh6 {[%clk 0:00:17.4]} 62. Nf6+
{[%clk 0:00:16.4]} 62... Kc4 {[%clk 0:00:16.9]} 63. Ng8 {[%clk 0:00:16.5]} 63...
Bc1 {[%clk 0:00:16.1]} 64. Kg4 {[%clk 0:00:16.9]} 64... Kc3 {[%clk 0:00:16.1]}
65. Ne7 {[%clk 0:00:16.8]} 65... Kb2 {[%clk 0:00:15.9]} 66. Nd5 {[%clk
0:00:17.2]} 66... Kxa2 {[%clk 0:00:15.6]} 67. Nf4 {[%clk 0:00:17.6]} 67... Kb3
{[%clk 0:00:14.3]} 68. h6 {[%clk 0:00:16.7]} 68... Bb2 {[%clk 0:00:14.6]} 69. h7
{[%clk 0:00:16.2]} 69... a5 {[%clk 0:00:15]} 70. Kf5 {[%clk 0:00:11.8]} 70...
Kc4 {[%clk 0:00:13.5]} 71. Nh5 {[%clk 0:00:11.7]} 71... a4 {[%clk 0:00:12.7]}
72. Nf6 {[%clk 0:00:11.3]} 72... Bxf6 {[%clk 0:00:12.2]} 73. Kxf6 {[%clk
0:00:12.2]} 73... a3 {[%clk 0:00:12.5]} 74. h8=Q {[%clk 0:00:12.4]} 74... a2
{[%clk 0:00:12.7]} 75. Ke7 {[%clk 0:00:12.9]} 75... Kb3 {[%clk 0:00:12.8]} 76.
Qa1 {[%clk 0:00:13.8]} 1-0